Cogmind - Beta 13 @@@ ROGUE MODE // 2024.04.20 @ 17:01:42 Player: SVIT13 Result: Self-destructed Performance ------------- Evolutions (1) 500 Regions Visited (3) 600 Robots Destroyed (25) 125 Value Destroyed (468) 468 Prototype IDs (1) 20 Alien Tech Used (0) 0 Bonus (0) 0 TOTAL SCORE: 1713 Bonus ------- None Cogmind --------- Core Integrity 201/400 Matter 293/300 Energy 100/100 System Corruption 0% Temperature Warm (182) Movement Treading (160) Location -9/Mines Parts ------- > --- POWER (1) -------- (None) > --- PROPULSION (2) --- Light Treads Light Treads > --- UTILITY (4) ------ Large Storage Unit Sensor Array Terrain Scanner > --- WEAPON (2) ------- Light Cannon > --- INVENTORY (15) --- Wheel Wheel Wheel Wheel Improved Terrain Scanner Recoil Stabilizer Heavy EM Pulse Gun Heavy EM Pulse Gun Heavy EM Pulse Gun Light Assault Rifle Light Cannon Heavy Hammer Peak State ------------ > --- POWER ------------ Ion Engine > --- PROPULSION ------- Wheel Wheel > --- UTILITY ---------- Large Storage Unit Sensor Array Improved Terrain Scanner Recoil Stabilizer > --- WEAPON ----------- Heavy EM Pulse Gun Heavy EM Pulse Gun > --- INVENTORY -------- Light Ion Engine Light Treads Light Treads Wheel Wheel Heavy EM Pulse Gun Heavy EM Pulse Gun EM Shotgun Light Assault Rifle Light Cannon Light Cannon Heavy Hammer [Rating: 16] Favorites ----------- Power Ion Engine Engine Ion Engine Propulsion Light Treads Treads Light Treads Wheel Wheel Utility Large Storage Unit Device Sensor Array Storage Large Storage Unit Processor Improved Targeting Computer Protection Light Armor Plating Weapon Heavy EM Pulse Gun Energy Gun Heavy EM Pulse Gun Ballistic Gun Light Assault Rifle Ballistic Cannon Light Cannon Build | -11 -10 -9 -9 ------- Run | Yrd Mat Mat Min Slots Evolved 2 | . . 2 . Power . | . . . . Propulsion . | . . . . Utility 2 | . . 2 . Weapon . | . . . . Parts Attached 32 | 7 14 10 1 Power 2 | 1 . 1 . Engine 2 | 1 . 1 . Core . | . . . . Reactor . | . . . . Propulsion 10 | 2 6 2 . Treads 6 | 2 2 2 . Leg . | . . . . Wheel 4 | . 4 . . Hover . | . . . . Flight . | . . . . Utility 11 | 2 5 4 . Device 5 | 1 1 3 . Storage 4 | 1 3 . . Processor 1 | . 1 . . Hackware . | . . . . Protection 1 | . . 1 . Artifact . | . . . . Weapon 9 | 2 3 3 1 Energy Gun 7 | 1 3 3 . Energy Cannon . | . . . . Ballistic Gun 1 | 1 . . . Ballistic Cannon 1 | . . . 1 Launcher . | . . . . Special Weapon . | . . . . Impact Weapon . | . . . . Slashing Weapon . | . . . . Piercing Weapon . | . . . . Special Melee Weapon . | . . . . Unidentified Prototypes 1 | . . 1 . Parts Lost 6 | . 1 1 4 Power 2 | . . 1 1 Propulsion . | . . . . Utility 1 | . . . 1 Weapon 3 | . 1 . 2 Highest Loss Streak 4 | . 1 1 4 To Critical Strikes 1 | . . . 1 Average Slot Usage (%) 97 | . 99 95 99 Engine 11 | . 14 9 11 Treads 13 | . 13 9 22 Wheel 11 | . 14 12 . Device 17 | . 8 26 22 Storage 12 | . 14 11 11 Processor 2 | . 5 . . Protection 2 | . . 3 11 Energy Gun 24 | . 27 22 20 Naked Turns . | . . . . Heaviest Build 36 | 14 32 36 34 Greatest Support 40 | 40 40 40 40 Greatest Overweight (x) 2 | . 2 1 . Average Overweight (x) . | . . . . Largest Inventory Capacity 15 | 8 15 15 15 Average Capacity 14 | 7 14 15 15 Most Carried 14 | 5 10 14 13 Average Carried 9 | 2 8 11 12 Final Capacity 15 | 8 15 15 15 Final Carried 13 | 3 8 13 12 Class Distribution -------------------- 100% | Mutant Dominant Class ---------------- Mutant | -10/Materials Mutant | -9/Materials Mutant | -9/Mines Resources | -11 -10 -9 -9 ----------- Run | Yrd Mat Mat Min Matter Collected 497 | 270 118 99 10 Remotely . | . . . . Salvage Created 767 | 115 282 299 71 Parts 52 | 6 16 27 3 Haulers Intercepted 3 | . 1 2 . Recyclers Shooed . | . . . . Parts Field Recycled . | . . . . Retrieved Matter . | . . . . Parts Self-Destructed . | . . . . Prevented . | . . . . Kills | -11 -10 -9 -9 ------- Run | Yrd Mat Mat Min Combat Hostiles Destroyed 13 | . 5 4 4 Guns 7 | . 3 . 4 AOE 6 | . 2 4 . Classes Destroyed 11 | 3 3 3 2 Worker 1 | 1 . . . Builder 2 | . . 2 . Tunneler 2 | 2 . . . Hauler 3 | . 1 2 . Recycler 1 | 1 . . . Operator 1 | . . 1 . Watcher 3 | . 2 1 . Swarmer 3 | . . . 3 Grunt 8 | . 5 3 . Sentry 1 | . . 1 . Assembled 1 | . . . 1 Best Kill Streak 5 | 2 4 5 2 Combat Bots Only 2 | . 2 2 2 Max Kills in Single Turn 5 | 1 2 5 1 Gunslinging . | . . . . Exploded 2 | . 2 2 . Melee . | . . . . Uniques/NPCs Destroyed . | . . . . Combat | -11 -10 -9 -9 -------- Run | Yrd Mat Mat Min Hostile Shots Fired 98 | . 20 19 59 Missed 27 | . 5 7 15 Damage Taken 1074 | . 247 252 575 Core 250 | . 51 64 135 Absorbed by Shields . | . . . . Core Remaining (%) 89 | 100 79 . . Volleys Fired 58 | 8 12 19 19 Largest 2 | 2 2 2 2 Hottest 101 | 60 90 90 101 Shots Fired 110 | 16 23 37 34 Gun 107 | 16 23 37 31 Cannon 3 | . . . 3 Launcher . | . . . . Special . | . . . . Kinetic 11 | 8 . . 3 Thermal 17 | . . . 17 Explosive . | . . . . Electromagnetic 82 | 8 23 37 14 Robot Hit Streak 7 | 7 6 4 7 Robot Miss Streak 4 | 2 2 3 4 Penetration Max . | . . . . Secondary Targets 2 | . . . 2 Max Gunslinging Chain 1 | . . . 1 Shots Hit Robots 65 | 8 16 21 20 Core Hits 31 | 4 12 10 5 Critical Kills 1 | 1 . . . Critical Parts Destroyed . | . . . . Critical Strikes 3 | 1 . 1 1 Destroy 1 | 1 . . . Corrupt 2 | . . 1 1 Melee Attacks . | . . . . Impact . | . . . . Slashing . | . . . . Piercing . | . . . . Sneak Attacks . | . . . . Combat Hostiles . | . . . . Follow-up Attacks . | . . . . Damage Inflicted 1711 | 159 396 838 318 Guns 1006 | 95 291 333 287 Cannons 31 | . . . 31 Explosions 654 | 61 92 501 . Melee . | . . . . Ramming 20 | 3 13 4 . Kinetic 60 | 29 . . 31 Thermal 791 | 61 57 501 172 Explosive . | . . . . Electromagnetic 840 | 66 326 333 115 Impact . | . . . . Slashing . | . . . . Piercing . | . . . . Highest Corruption . | . . . . Average Corruption . | . . . . Corruption Purged . | . . . . Corruption Blocked . | . . . . Overload Shots . | . . . . Overflow Damage 111 | 22 . 89 . Projectiles . | . . . . Explosions 111 | 22 . 89 . Melee . | . . . . Knockbacks 2 | . . . 2 Impact . | . . . . Kinetic 2 | . . . 2 Secondary . | . . . . Self-Inflicted Damage 188 | . 82 106 . Shots 5 | . 2 3 . Rammed 2 | . 1 1 . Targets Rammed 3 | 1 1 1 . Kicked . | . . . . Crushed 1 | 1 . . . Highest Temperature 234 | 40 138 163 234 Average Temperature 67 | 16 49 49 109 Received Heat Transfer 168 | . 93 66 9 Siege Activations . | . . . . Robots Corrupted . | . . . . Combat Hostiles . | . . . . Parts Fried 3 | . 1 1 1 Impact Corruptions . | . . . . Robots Melted . | . . . . Combat Hostiles . | . . . . Parts Melted . | . . . . Heat Transferred 870 | 100 100 300 370 Parts Sabotaged . | . . . . Parts Stolen . | . . . . Parts Stripped . | . . . . Power Chain Reactions 5 | 1 2 2 . Alert | -11 -10 -9 -9 ------- Run | Yrd Mat Mat Min Peak Influence 307 | 15 179 307 209 Initial 119 | . 13 9 119 Average 97 | 5 87 95 184 Maximum Alert Level 1 | . . 1 1 Low Security (%) 88 | 100 100 86 51 Level 1 11 | . . 13 48 Level 2 . | . . . . Level 3 . | . . . . Level 4 . | . . . . Level 5 . | . . . . High Security . | . . . . Max Security . | . . . . Squads Dispatched 4 | . 2 2 . Investigation 3 | . 2 1 . Extermination . | . . . . Reinforcement 1 | . . 1 . Assault . | . . . . Garrison . | . . . . Intercept . | . . . . Searches Triggered . | . . . . Construction Impeded . | . . . . Haulers Reinforced . | . . . . Active Scanning Responses . | . . . . Cargo Convoy Interrupts . | . . . . Stealth | -11 -10 -9 -9 --------- Run | Yrd Mat Mat Min Distress Signals 1 | . . 1 . Communications Jammed . | . . . . Distress Signals . | . . . . Times Spotted 50 | . 9 17 24 Peak Tracking Total 11 | . 3 5 11 Tactical Retreats 5 | . . 2 3 Traps | -11 -10 -9 -9 ------- Run | Yrd Mat Mat Min Traps Triggered 2 | . 1 1 . Indirectly . | . . . . Trap Hack Attempts . | . . . . Triggered . | . . . . Disarmed . | . . . . Reprogrammed . | . . . . Reused . | . . . . Traps Extracted . | . . . . Installed . | . . . . Triggered . | . . . . Machines | -11 -10 -9 -9 ---------- Run | Yrd Mat Mat Min Machines Disabled 2 | . 1 1 . Max in Single Turn 1 | . 1 1 . Machines Repaired . | . . . . Machines Dismantled . | . . . . Machines Sabotaged . | . . . . Overloaded Fab Kills . | . . . . Hacking | -11 -10 -9 -9 --------- Run | Yrd Mat Mat Min Machines Accessed 4 | . 2 2 . Terminals 3 | . 2 1 . Fabricators . | . . . . Repair Stations . | . . . . Recycling Units 1 | . . 1 . Scanalyzers . | . . . . Garrison Access . | . . . . Total Hacks 11 | . 5 6 . Successful 7 | . 2 5 . Failed 4 | . 3 1 . Catastrophic . | . . . . Database Lockouts . | . . . . Manual . | . . . . Terminals 7 | . 5 2 . Fabricators . | . . . . Repair Stations . | . . . . Recycling Units 4 | . . 4 . Scanalyzers . | . . . . Garrison Access . | . . . . Terminal Hacks 4 | . 2 2 . Alert Level 2 | . 1 1 . Hauler Manifests 1 | . . 1 . Zone Layout 1 | . 1 . . Fabricator Hacks . | . . . . Repair Station Hacks . | . . . . Recycling Unit Hacks 3 | . . 3 . Recycle Component 1 | . . 1 . Process 1 | . . 1 . Retrieve Matter 1 | . . 1 . Scanalyzer . | . . . . Garrison Access Hacks . | . . . . Unauthorized Hacks . | . . . . Terminals . | . . . . Fabricators . | . . . . Repair Stations . | . . . . Recycling Units . | . . . . Scanalyzers . | . . . . Garrison Access . | . . . . Data Cores Recovered 1 | . . 1 . Used . | . . . . Hacking Detections 2 | . 1 1 . Full Trace Events 1 | . 1 . . Feedback Events . | . . . . Feedback Blocked . | . . . . Robot Schematics Acquired . | . . . . Robots Built . | . . . . Authchips . | . . . . Time . | . . . . Total Robot Build Rating . | . . . . Part Schematics Acquired . | . . . . Parts Built . | . . . . Authchips . | . . . . Time . | . . . . Total Part Build Rating . | . . . . Parts Repaired . | . . . . Time . | . . . . Parts Recycled 1 | . . 1 . Recycled Matter 3 | . . 3 . Retrieved Matter 3 | . . 3 . Retrieved Components . | . . . . Parts Scanalyzed . | . . . . Part Schematics Acquired . | . . . . Parts Damaged . | . . . . Bothacking | -11 -10 -9 -9 ------------ Run | Yrd Mat Mat Min Used RIF Installer . | . . . . Robots Hacked . | . . . . Non-combat . | . . . . Combat . | . . . . Robot Hacks Applied . | . . . . Relay Couplers Released . | . . . . Fabnet Peak Effective % . | . . . . Robots Rewired . | . . . . Allies Hacked . | . . . . Hacks Repelled . | . . . . Allies | -11 -10 -9 -9 -------- Run | Yrd Mat Mat Min Total Allies 3 | . . . 3 Largest Group 3 | . . . 3 Highest-Rated Group 40 | . . . 40 Highest-Rated Ally 16 | . . . 16 Total Orders . | . . . . Ally Attacks 28 | . . . 28 Total Damage 214 | . . . 214 Kills 4 | . . . 4 Allies Corrupted . | . . . . Allies Melted . | . . . . Intel | -11 -10 -9 -9 ------- Run | Yrd Mat Mat Min Robot Analysis Total . | . . . . Derelict Logs Recovered 1 | . . . 1 Drone Launches . | . . . . Drone Recoveries . | . . . . Exploration | -11 -10 -9 -9 ------------- Run | Yrd Mat Mat Min Turns Passed 1174 | 101 505 392 176 Spaces Moved 752 | 54 352 270 76 Core 23 | 23 . . . Treads 281 | 31 110 64 76 Legs . | . . . . Wheels 448 | . 242 206 . Hover . | . . . . Flight . | . . . . Fastest Speed 50 | 50 95 95 160 Average Speed 118 | 113 116 110 160 Slowest Speed 160 | 160 160 160 160 Overloaded Moves . | . . . . Propulsion Burnouts . | . . . . Robots Hopped . | . . . . Cave-ins Triggered . | . . . . Exploration Rate (%) 25 | 4 45 31 23 Regions Visited 3 Branch Regions 1 Pre-discovered Areas 1 | . . . 1 Known Exits Taken . | . . . . Unknown Exits Taken 3 | 1 1 1 . Scrap Searched . | . . . . Spaces Dug . | . . . . Terrain Destroyed 26 | 4 7 15 . Melee . | . . . . Projectile . | . . . . AOE 26 | 4 7 15 . Terrain Rammed . | . . . . Walls Destroyed . | . . . . Machines Disabled . | . . . . Actions | -11 -10 -9 -9 --------- Run | Yrd Mat Mat Min Total 918 | 79 420 323 96 Wait 42 | . 29 13 . Move 750 | 54 351 269 76 Hop . | . . . . Pick Up 30 | 10 10 10 . Fast Attach . | . . . . Attach 12 | 7 1 3 1 Detach . | . . . . Swap 20 | . 13 7 . Drop 4 | . 3 1 . Fire 58 | 8 12 19 19 Melee . | . . . . Ram 1 | . 1 . . Kick . | . . . . Crush 1 | . . 1 . Escape Stasis . | . . . . Rewire . | . . . . Trap . | . . . . Miscellaneous . | . . . . Route ------- -11/Scrapyard -10/Materials -9/Materials (discovered 2 exits: [*Min x2]) -9/Mines History --------- Turn | Location | Event 4 | -11/Scrapyard | Discovered new exit (range 16) 102 | -11/Scrapyard | Entered Materials 322 | -10/Materials | Build established: Mutant 444 | -10/Materials | Discovered new exit (range 16) 607 | -10/Materials | Entered another Materials area 607 | -9/Materials | Evolved 2 slots: Utility x2 902 | -9/Materials | Discovered new exit (range 5) 983 | -9/Materials | Discovered new exit (range 11) 999 | -9/Materials | Entered Mines 1070 | -9/Mines | Learned location of Zion (-7) 1110 | -9/Mines | Assisted by bots powering up and referring to "LRC-V3" 1130 | -9/Mines | Assembled infested the area 1135 | -9/Mines | Assisted by a Guerilla fighting off Assembled 1175 | -9/Mines | Self-destructed Last Messages --------------- 01149_ as-63148 suffers critical hit (Destroy). 01149_ as-63148 destroyed. 01151_ HV Slug penetrates as-72998. 01151_ as-72998 suffers critical hit (Destroy). 01151_ as-72998 destroyed. 01151_ Destroyed Asb. F-torch. 01154_ HV Slug penetrates Wall. 01155_ E4-5KS(h) destroyed. 01160_ as-92764 destroyed. 01160_ Switching to secondary target: as-72395. 01161_ Hvy. EM Pulse Gun destroyed. 01168_ as-72395 knocked back. 01169_ Critical hit (Destroy). 01169_ Imp. Medium Laser destroyed. 01171_ Lgt. Ion Engine destroyed. 01171_ as-25029 knocked back. 01173_ Lgt. Armor Plating destroyed. 01175_ C-30 ARC bursts open, deploying its payload. 01175_ D-53 Grenadier unfolds itself. Map ----- +----------------------------------------------------+ | ?????????????????????????????????????????????????? | | ???????????????????????????????????????????????### | | ???????????????????????????????????????????????# | | ??????????????????????????????????????????????## | | ???????????????????????????????????????????????# # | | ???????????????????????????????????????????#???# # | | ???????????????????????????????????????????#???# # | | ????????????????????????????#?????#????????????# # | | ???????????????????????????????????????????#???# # | | ?????????????????????????????????????#?????????# # | | ??????????????????????????????????#####????????# # | | ?????????????????????#??####??????# #???#????# # | | ???????????????????????## ##?????# #???#????# # | | ???????????????????????# #????## #????##### # | | ???????????????????????? ????## ##?#?# # | | ?????????????????????#??# #?#?## #???# ##### | | ???????????????????#????# ##??# #???# ##??? | | ?????????????????#####?## #??# ##?##%[##?? | | ?????????????? ### ## #### ### #?? | | ????????????????# * ? ? #?? | | ????????????? ??# =% ### | | ????????????????# ! ######### ## | | ???????????????### % %! ###???#??# #### ### | | ????????????# ## %a *%|#????????# ####??####??? | | ????????????# d %%a a##???????# #?#???#?????? | | ????????????# d % a@#???????# #???????????? | | ????????????##" # a #??????# #???????????? | | ?????????????##?# # #??????# #???????????# | | ????????????????## ? # #??????# ???????????? | | ???????????????????##?## #??????####???????????? | | ?????????????#?????????# #?????????????????????? | | ?????????????????????#? #?#???????????????????? | | ??????????????????????? #?????????????????????? | | ??????????????????????? ???????????????#?????? | | ??????????????????????## ?????????????????????? | | ???????????????????????# ?????????????????????? | | ???????????????????????## ????????????????????? | | ??????????????????#??????# ????????????????????? | | ??????????????????????????## ????????????????????? | | ????????????????????????????#????????????????????? | | ?????????????????????????????????????????????????? | | ?????????????????????????????????????????????????? | | ?????????????????????????????????????????????????? | | ?????????????????????????????????????????????????? | | ?????????????????????????????????????????????????? | | ?????????????????????????????????????????????????? | | ?????????????????????????????????????????????????? | | ?????????????????????????????????????????????????? | | ?????????????????????????????????????????????????? | | ?????????????????????????????????????????????????? | +----------------------------------------------------+ Best States ------------- Heat Dissipation 28 Energy Generation 10 Energy Capacity 250 Matter Stores 300 Matter Capacity 300 Sight Range 16 Robot Scan Range 14 Terrain Scan Range 16 Terrain Scan Density 10 Armor Coverage 150 Evasion (%) 50 Targeting Accuracy 6 Recoil Reduction 4 Item Schematics ----------------- None Robot Schematics ------------------ None Fabricated ------------ Nothing Alien Tech Used ----------------- None Achievements -------------- None Challenges ------------ None Game ------ Seed GlidesysMicrowarpMonowheel Manual? 0 Play Time 00:19:13 Cumulative 14.1 hours Start 2024.04.20 @ 16:42:44 End 2024.04.20 @ 17:01:42 Sessions 1 Manual Loads 0 Difficulty Rogue Special Mode None Game No. 22 Rogue 22 Adventurer 0 Explorer 0 Win Type - Total 0 Types 0/0/0/0/0/0/0/0/0 Lore% 14 Gallery% 14 Achievement% 14 Wizard Run 0 Options --------- Layout 1 ASCII 0 Keyboard 0 Movement Mouse Keybinds 0 Fullscreen 1 Font 24/Smallcaps Map View 50x35 Zoom Use 0% Tactical HUD 1 Map Filters NONE Filters NONE Steam 1 RUN: 00c0dd3c-b5e1-495f-9a6b-12afcd81ff28